Workbook

Sheet Kraken
B2: =IF(C4<C12,"LONG",IF(C4>C12,"SHORT","Margin Trade Calculator")) -> LONG | I2: Trade Balance | J2: 2000 | L2: Front Run Calculator
D3: DCA | I3: Max Loss Risk | J3: 0.2 | L3: =$L$7+($L$7*M3) -> 5713.128652 | M3: 0.00551
B4: Entry Price | C4: 5800 | E4: =((C6*C4)+(D6*D4))/(C6+D6) -> 5800 | F4: Position Volume | G4: =IFERROR(C6/C4,"") -> 1.184137931 | I4: Maker Fee | J4: 0.0012 | L4: =$L$7+($L$7*M4) -> 5701.196826 | M4: 0.00341
B5: Leverage | C5: 5 | E5: =((C6*C5)+(D6*D5))/(C6+D6) -> 5 | F5: Margin Size | G5: =IFERROR(C6/C5,"") -> 1373.6 | I5: Taker Fee | J5: 0.0022 | L5: =$L$7+($L$7*M5) -> 5693.810458 | M5: 0.00211
B6: Position Size | C6: 6868 | E6: =C6+D6 -> 6868 | F6: Margin Call (80%) | G6: 6560.992429 | H6: =(J2+(C6*((G4*IF(B2="SHORT",(G6*-1),G6))+IF(B2="SHORT",C6,(C6*-1)))/C6))/(C6/C5) -> 2.112055911 | L6: =$L$7+($L$7*M6) -> 5689.265 | M6: 0.00131
C7: =(J2*J3)-F19 -> -148.7532 | F7: Liquidation (40%) | G7: 7024.992429 | H7: =(J2+(C6*((G4*IF(B2="SHORT",(G7*-1),G7))+IF(B2="SHORT",C6,(C6*-1)))/C6))/(C6/C5) -> 2.512055911 | I7: Finance Fee | J7: 0.0001 | L7: 5681.821814 | M7: target
B8: Order Type | C8: LL | F8: Break Even Price | G8: =IFERROR(((C6+(IF(B2="SHORT",(G13+G10)*-1,G13+G10)))/C6)*C4,"") -> 5918.178186 | I8: Rollover (h) | J8: 4 | L8: =$L$7+($L$7*M8) -> 5674.378627 | M8: -0.00131
B9: Expected Duration | C9: 720 | D9: hours | F9: =G8-G9 -> 236.3563724 | G9: 5681.821814 | L9: =$L$7+($L$7*M9) -> 5669.83317 | M9: -0.00211
F10: Estimated Finance | G10: =(CEILING(C9/J8,1)*J7)*C6 -> 123.624 | I10: Confidence | J10: 0.5 | L10: =$L$7+($L$7*M10) -> 5662.446801 | M10: -0.00341
D11: portion | E11: profit % | F11: Est. Fees @ Profit | G11: =(IF(OR(C8="LL",C8="LM"),J4,J5)*C6)+(IF(OR(C8="LL",C8="ML"),J4,J5)*(C6*(1+C16))) -> 22.52230345 | L11: =$L$7+($L$7*M11) -> 5650.514976 | M11: -0.00551
B12: Profit Target 1 | C12: 10050 | D12: 1 | E12: =IFERROR(IF(D12>0,IF($B$2="LONG",(C12-$C$4),($C$4-C12))/$C$4,0),"") -> 0.7327586207 | F12: Est. Fees @ Loss | G12: =(IF(OR(C8="LL",C8="LM"),J4,J5)*C6)+(IF(OR(C8="LL",C8="ML"),J4,J5)*(C6*(1-G16))) -> 16.00007172 | I12: Describe Trade Setup
B13: Profit Target 2 | D13: 0 | E13: =IFERROR(IF(D13>0,IF($B$2="LONG",(C13-$C$4),($C$4-C13))/$C$4,0),"") -> 0 | F13: Est. Fees @ Even | G13: =(IF(OR(C8="LL",C8="LM"),J4,J5)*C6)+(IF(OR(C8="LL",C8="ML"),J4,J5)*(C6*(G9/C4))) -> 16.31527287 | I13: What support/resistance, indicators, price action patterns, or other system was used to identify this trade setup?
B14: Profit Target 3 | D14: 0 | E14: =IFERROR(IF(D14>0,IF($B$2="LONG",(C14-$C$4),($C$4-C14))/$C$4,0),"") -> 0
B15: Profit Target 4 | D15: =100%-SUM(D12:D14) -> 0 | E15: =IFERROR(IF(D15>0,IF($B$2="LONG",(C15-$C$4),($C$4-C15))/$C$4,0),"") -> 0 | F15: Stop Loss | G15: 5460
B16: Blended Profit % | C16: =(E12*D12)+(E13*D13)+(E14*D14)+(E15*D15) -> 0.7327586207 | F16: Loss % (at stop) | G16: =IFERROR(IF(B2="LONG",(C4-G15),(G15-C4))/C4,"") -> 0.05862068966 | I16: Stop Loss Treatment | L16: Profit Taking Plan
I17: Hard (automated), soft (manual), open hedge (counter-future, 2nd instrument, covered call / protective put), etc… | L17: Limit order, trailing stop loss, laddered scale out, etc…
B18: Target Profit | D18: Risk Ratio | F18: Max Loss
B19: =IFERROR((C16*C6)-(G11+G10),"") -> 4886.439903 | D19: =IFERROR(_xlfn.CONCAT(ROUND(B19/F19,2)," : 1"),"") -> 8.9 : 1 | F19: =IFERROR((G16*C6)+(G11+G10),"") -> 548.7532

Sheet BitMex
B2: =IF(C4<C12,"LONG",IF(C4>C12,"SHORT","Margin Trade Calculator")) -> SHORT | I2: Equity Value | J2: =J3*C4 -> 19160.375 | L2: Front Run Calculator
D3: DCA | I3: Wallet Balance | J3: 3.25 | L3: =$L$7+($L$7*M3) -> 5960.66328 | M3: 0.00551
B4: Entry Price | C4: 5895.5 | E4: =((C6*C4)+(D6*D4))/(C6+D6) -> 5895.5 | F4: Position Volume | G4: =IFERROR(C6/C4,"") -> 8.481044865 | I4: Max Loss Risk | J4: 0.02 | L4: =$L$7+($L$7*M4) -> 5948.21448 | M4: 0.00341
B5: Max Safe Leverage | C5: =IF(D5="",MIN(C6/F19,100),D5) -> 21.40500717 | F5: Margin Size | G5: =IFERROR(C6/C5/C4,"") -> 0.3962178007 | I5: Maker Fee | J5: -0.00025 | L5: =$L$7+($L$7*M5) -> 5940.50808 | M5: 0.00211
B6: Position Size | C6: 50000 | E6: =C6+D6 -> 50000 | F6: =_xlfn.CONCAT("Liq. Price at ",ROUND(C5,0)," lev") -> Liq. Price at 21 lev | G6: =IFERROR(ROUND((IF(B2="LONG",(C4) + ((C4) * (((1 / ((C5) + 1) * (-1)) * 100) + (((0.005) - (1 / (C5) * (0.005))) * 100))) / 100, (C4) + ((C4) * (((1 / ((C5) - 1)) * 100) - (((0.005) + (1 / (C5) * (0.005))) * 100))) / 100))/5,1)*5,"") -> 6153.5 | I6: Taker Fee | J6: 0.00075 | L6: =$L$7+($L$7*M6) -> 5935.76568 | M6: 0.00131
C7: =(J2*J4)-F19 -> -1952.694544 | F7: Liq. Price on Cross | G7: =IFERROR(ROUND((IF(B2="LONG",(C4) + ((C4) * (((1 / ((C6/J2) + 1) * (-1)) * 100) + (((0.005) - (1 / (C6/J2) * (0.005))) * 100))) / 100, (C4) + ((C4) * (((1 / ((C6/J2) - 1)) * 100) - (((0.005) + (1 / (C6/J2) * (0.005))) * 100))) / 100))/5,1)*5,"") -> 9517.5 | I7: Est. Funding | J7: 0.00037 | L7: 5928 | M7: target
B8: Order Type | C8: LM | F8: Break Even Price | G8: =IFERROR(ROUND((((C6+(IF(B2="SHORT",(G13)*-1,G13)))/C6)*C4)/5,1)*5,"") -> 5894 | I8: Rollover (h) | J8: 8 | L8: =$L$7+($L$7*M8) -> 5920.23432 | M8: -0.00131
B9: Expected Duration | C9: 8 | D9: hours | F9: =G8-G9 -> 1679.527231 | G9: 4214.472769 | L9: =$L$7+($L$7*M9) -> 5915.49192 | M9: -0.00211
F10: Est. Funding | G10: =(CEILING(C9/J8,1)*J7)*C6 -> 18.5 | I10: Confidence | J10: 0.65 | L10: =$L$7+($L$7*M10) -> 5907.78552 | M10: -0.00341
D11: portion | E11: profit % | F11: Est. Fees @ Profit | G11: =(IF(OR(C8="LL",C8="LM"),J5,J6)*C6)+(IF(OR(C8="LL",C8="ML"),J5,J6)*(C6*(1+C16))) -> 49.13599355 | L11: =$L$7+($L$7*M11) -> 5895.33672 | M11: -0.00551
B12: Profit Target 1 | C12: 2101 | D12: 1 | E12: =IFERROR(IF(D12>0,IF($B$2="LONG",(C12-$C$4),($C$4-C12))/$C$4,0),"") -> 0.6436264948 | F12: Est. Fees @ Loss | G12: =(IF(OR(C8="LL",C8="LM"),J5,J6)*C6)+(IF(OR(C8="LL",C8="ML"),J5,J6)*(C6*(1-G16))) -> 23.27940802 | I12: Describe Trade Setup
B13: Profit Target 2 | D13: 0 | E13: =IFERROR(IF(D13>0,IF($B$2="LONG",(C13-$C$4),($C$4-C13))/$C$4,0),"") -> 0 | F13: Est. Fees @ Even | G13: =(IF(OR(C8="LL",C8="LM"),J5,J6)*C6)+(IF(OR(C8="LL",C8="ML"),J5,J6)*(C6*(G9/C4))) -> 14.30734948 | I13: Major algo swing laddered entry setup between .618 and .65
B14: Profit Target 3 | D14: 0 | E14: =IFERROR(IF(D14>0,IF($B$2="LONG",(C14-$C$4),($C$4-C14))/$C$4,0),"") -> 0
B15: Profit Target 4 | D15: =100%-SUM(D12:D14) -> 0 | E15: =IFERROR(IF(D15>0,IF($B$2="LONG",(C15-$C$4),($C$4-C15))/$C$4,0),"") -> 0 | F15: Stop Loss | G15: 6166
B16: Blended Profit % | C16: =(E12*D12)+(E13*D13)+(E14*D14)+(E15*D15) -> 0.6436264948 | F16: Loss % (at stop) | G16: =IFERROR(IF(B2="LONG",(C4-G15),(G15-C4))/C4,"") -> 0.04588245272 | I16: Stop Loss Treatment | L16: Profit Taking Plan
I17: Will take a soft stop if 15m candle closes above the .65 (5906). Hard stop loss at the lesser of (liquidation-7) or 6160. | L17: Taking position on June 28 XBT futures. Will probably take partial profits on the way down and re-enter on pullbacks. Time and wave structure will reveal better plans on the way down.
B18: Target Profit | D18: Risk Ratio | F18: Max Loss
B19: =IFERROR((C16*C6)-(G11+G10),"") -> 32113.68875 | D19: =IFERROR(_xlfn.CONCAT(ROUND(B19/F19,2)," : 1"),"") -> 13.75 : 1 | F19: =IFERROR((G16*C6)+(G12+G10),"") -> 2335.902044

Sheet Sentiment
B1: BTC Sentiment
C3: Current Sentiment | D3: ='BTC Prices'!N28/100 -> 0.3882809023
C4: Current BitMEX Price | D4: =BitMEX_LastPrice[BitMEX_LastPrice] -> 7586
C5: Current Market Index | D5: =VALUE('BTC Prices'!N29) -> 7641.289683
B7: Rolling-60 Minute Sentiment Price Range Predictions | G7: This dashboard will have much more on
G8: it in the near future, but for now enjoy
C9: Lower | D9: Median | E9: Upper | G9: these sentiment-based price predictions!
B10: BitMEX Adjusted | C10: =HourlySentimentLowerPricePrediction[HourlySentimentLowerPricePrediction]-'BTC Prices'!P6 -> 7408.030829 | D10: =HourlySentimentMedianPricePrediction8[HourlySentimentMedianPricePrediction (2)]-'BTC Prices'!P6 -> 7536.108192 | E10: =HourlySentimentUpperPricePrediction9[HourlySentimentUpperPricePrediction (2)]-'BTC Prices'!P6 -> 7664.185555
B11: Broad Market Index | C11: =HourlySentimentLowerPricePrediction[HourlySentimentLowerPricePrediction] -> 7463.320513 | D11: =HourlySentimentMedianPricePrediction8[HourlySentimentMedianPricePrediction (2)] -> 7591.397875 | E11: =HourlySentimentUpperPricePrediction9[HourlySentimentUpperPricePrediction (2)] -> 7719.475238
C12: Last Updated: | D12: =LastTimestamp[[#Totals],[LastTimestamp]] -> 2019-06-04T22:39:00 | E12: (UTC)
D13: *Updates every 5 minutes

Sheet Volatility
B1: BTC Volatility
C3: Historical Volatility | D3: =L4*SQRT(365) -> 0.7849588871 | F3: ='BTC Prices'!A2 -> 2019-06-04 | K3: Sample Size | L3: 15
C4: Implied Volatility (Deribit) | D4: ='BTC Prices'!N10 -> 0.88695 | K4: Volatility Mean | L4: =_xlfn.STDEV.S('BTC Prices'!I2:I16) -> 0.04108662598
B5: =_xlfn.CONCAT('BTC Prices'!N6,CHAR(13),CHAR(10),'BTC Prices'!N8) -> BTC-7JUN19-7500-C BTC-7JUN19-7750-P | G5: Today's Open
B6: =IF('BTC Prices'!P3<B10, _xlfn.CONCAT("Current: ", ROUND('BTC Prices'!P3,0)), "") ->  | C6: =IF(AND(VALUE('BTC Prices'!P3)<C9,VALUE('BTC Prices'!P3)>B10), _xlfn.CONCAT("Current: ", ROUND('BTC Prices'!P3,0)), "") ->  | D6: =IF(AND(VALUE('BTC Prices'!P3)<E8,VALUE('BTC Prices'!P3)>C9), _xlfn.CONCAT("Current: ", ROUND('BTC Prices'!P3,0)), "") -> Current: 7586 | F6: =IF(AND(VALUE('BTC Prices'!P3)<G6,VALUE('BTC Prices'!P3)>E8), _xlfn.CONCAT("Current: ", ROUND('BTC Prices'!P3,0)), "") ->  | G6: ='BTC Prices'!C2 -> 8100.5 | H6: =IF(AND(VALUE('BTC Prices'!P3)>G6,VALUE('BTC Prices'!P3)<I8), _xlfn.CONCAT("Current: ", ROUND('BTC Prices'!P3,0)), "") ->  | J6: =IF(AND(VALUE('BTC Prices'!P3)>I8,VALUE('BTC Prices'!P3)<K9), _xlfn.CONCAT("Current: ", ROUND('BTC Prices'!P3,0)), "") ->  | K6: =IF(AND(VALUE('BTC Prices'!P3)>K9,VALUE('BTC Prices'!P3)<L10), _xlfn.CONCAT("Current: ", ROUND('BTC Prices'!P3,0)), "") ->  | L6: =IF(VALUE('BTC Prices'!P3)>L10, _xlfn.CONCAT("Current: ", ROUND('BTC Prices'!P3,0)), "") -> 
B7: =_xlfn.CONCAT("3α (", ROUND(ABS($G$6-B10)/$G$6*100,2), "%)") -> 3α (12.33%) | C7: =_xlfn.CONCAT("2α (", ROUND(ABS($G$6-C9)/$G$6*100,2), "%)") -> 2α (8.22%) | E7: =_xlfn.CONCAT("1α (", ROUND(ABS($G$6-E8)/$G$6*100,2), "%)") -> 1α (4.11%) | I7: =_xlfn.CONCAT("1α (", ROUND(ABS($G$6-I8)/$G$6*100,2), "%)") -> 1α (4.11%) | K7: =_xlfn.CONCAT("2α (", ROUND(ABS($G$6-K9)/$G$6*100,2), "%)") -> 2α (8.22%) | L7: =_xlfn.CONCAT("3α (", ROUND(ABS($G$6-L10)/$G$6*100,2), "%)") -> 3α (12.33%)
E8: =$G$6-($G$6*$L$4*1) -> 7767.677786 | F8: =_xlfn.CONCAT(ROUND(I8-E8,0), " (68%)") -> 666 (68%) | I8: =$G$6+($G$6*$L$4*1) -> 8433.322214
C9: =$G$6-($G$6*$L$4*2) -> 7434.855573 | D9: =_xlfn.CONCAT(ROUND(K9-C9,0), " (95%)") -> 1331 (95%) | K9: =$G$6+($G$6*$L$4*2) -> 8766.144427
B10: =$G$6-($G$6*$L$4*3) -> 7102.033359 | C10: =_xlfn.CONCAT(ROUND(L10-B10,0), " (99%)") -> 1997 (99%) | L10: =$G$6+($G$6*$L$4*3) -> 9098.966641
B12: =$G$6 - ((_xlfn.T.INV.2T(0.0028,($L$3-1)) * _xlfn.STDEV.S('BTC Prices'!B2:B16))) -> 6570.474825 | C12: =$G$6 - ((_xlfn.T.INV.2T(0.0456,($L$3-1)) * _xlfn.STDEV.S('BTC Prices'!B2:B16))) -> 7172.47574 | E12: =$G$6 - ((_xlfn.T.INV.2T(0.3174,($L$3-1)) * _xlfn.STDEV.S('BTC Prices'!B2:B16))) -> 7661.969512 | G12: T-Distribution | I12: =$G$6 + ((_xlfn.T.INV.2T(0.3174,($L$3-1)) * _xlfn.STDEV.S('BTC Prices'!B2:B16))) -> 8539.030488 | K12: =$G$6 + ((_xlfn.T.INV.2T(0.0456,($L$3-1)) * _xlfn.STDEV.S('BTC Prices'!B2:B16))) -> 9028.52426 | L12: =$G$6 + ((_xlfn.T.INV.2T(0.0028,($L$3-1)) * _xlfn.STDEV.S('BTC Prices'!B2:B16))) -> 9630.525175
G14: ATR | K14: Periods | L14: 14
E15: measured from yesterday's low | G15: =AVERAGE('BTC Prices'!J2:J15) -> 500.1785714 | H15: measured from yesterday's high
B16: 2.5 x | C16: 2 x | D16: 1.5 x | E16: 1 x | F16: 0.5 x | G16: =G15/G6 -> 0.0617466294 | H16: 0.5 x | I16: 1 x | J16: 1.5 x | K16: 2 x | L16: 2.5 x
B17: ='BTC Prices'!E3-($G$15*2.5) -> 6779.553571 | C17: ='BTC Prices'!E3-($G$15*2) -> 7029.642857 | D17: ='BTC Prices'!E3-($G$15*1.5) -> 7279.732143 | E17: ='BTC Prices'!E3-($G$15*1) -> 7529.821429 | F17: ='BTC Prices'!E3-($G$15*0.5) -> 7779.910714 | H17: ='BTC Prices'!D3+($G$15*0.5) -> 8994.589286 | I17: ='BTC Prices'!D3+($G$15*1) -> 9244.678571 | J17: ='BTC Prices'!D3+($G$15*1.5) -> 9494.767857 | K17: ='BTC Prices'!D3+($G$15*2) -> 9744.857143 | L17: ='BTC Prices'!D3+($G$15*2.5) -> 9994.946429
B18: =$G$6-($G$15*2.5) -> 6850.053571 | C18: =$G$6-($G$15*2) -> 7100.142857 | D18: =$G$6-($G$15*1.5) -> 7350.232143 | E18: =$G$6-($G$15*1) -> 7600.321429 | F18: =$G$6-($G$15*0.5) -> 7850.410714 | H18: =$G$6+($G$15*0.5) -> 8350.589286 | I18: =$G$6+($G$15*1) -> 8600.678571 | J18: =$G$6+($G$15*1.5) -> 8850.767857 | K18: =$G$6+($G$15*2) -> 9100.857143 | L18: =$G$6+($G$15*2.5) -> 9350.946429
F19: measured from today's open

Sheet Pivots
B1: BTC Pivots
D3: =IF(BitMEX_LastPrice[BitMEX_LastPrice]>C4,BitMEX_LastPrice[BitMEX_LastPrice],"") ->  | E3: Current Price | G3: Today's Open | H3: ='BTC Prices'!C2 -> 8100.5
B4: R3 | C4: =C8+(BTCDailyOHLC[[#This Row],[High]]-BTCDailyOHLC[[#This Row],[Low]]) -> 8856.5 | D4: =IF(BitMEX_LastPrice[BitMEX_LastPrice]=C4,C4,"") ->  | G4: Today's High | H4: ='BTC Prices'!D2 -> 8100.5
D5: =IF(AND(BitMEX_LastPrice[BitMEX_LastPrice]<C4,BitMEX_LastPrice[BitMEX_LastPrice]>C6),BitMEX_LastPrice[BitMEX_LastPrice],"") ->  | G5: Today's Low | H5: ='BTC Prices'!E2 -> 7500
B6: R2 | C6: =C10+('BTC Prices'!D3-'BTC Prices'!E3) -> 9006 | D6: =IF(BitMEX_LastPrice[BitMEX_LastPrice]=C6,C6,"") -> 
D7: =IF(AND(BitMEX_LastPrice[BitMEX_LastPrice]<C6,BitMEX_LastPrice[BitMEX_LastPrice]>C8),BitMEX_LastPrice[BitMEX_LastPrice],"") -> 
B8: R1 | C8: =C10+(C10-'BTC Prices'!E3) -> 8553 | D8: =IF(BitMEX_LastPrice[BitMEX_LastPrice]=C8,C8,"") ->  | H8: All data on this page is taken from
D9: =IF(AND(BitMEX_LastPrice[BitMEX_LastPrice]<C8,BitMEX_LastPrice[BitMEX_LastPrice]>C10),BitMEX_LastPrice[BitMEX_LastPrice],"") ->  | H9: BitMEX
B10: Daily Pivot | C10: =('BTC Prices'!D3+'BTC Prices'!E3+'BTC Prices'!B3)/3 -> 8291.5 | D10: =IF(BitMEX_LastPrice[BitMEX_LastPrice]=C10,C10,"") -> 
D11: =IF(AND(BitMEX_LastPrice[BitMEX_LastPrice]<C10,BitMEX_LastPrice[BitMEX_LastPrice]>C12),BitMEX_LastPrice[BitMEX_LastPrice],"") -> 
B12: S1 | C12: =C10-('BTC Prices'!D3-C10) -> 7838.5 | D12: =IF(BitMEX_LastPrice[BitMEX_LastPrice]=C12,C12,"") -> 
D13: =IF(AND(BitMEX_LastPrice[BitMEX_LastPrice]<C12,BitMEX_LastPrice[BitMEX_LastPrice]>C14),BitMEX_LastPrice[BitMEX_LastPrice],"") -> 7586
B14: S2 | C14: =C10-('BTC Prices'!D3-'BTC Prices'!E3) -> 7577 | D14: =IF(BitMEX_LastPrice[BitMEX_LastPrice]=C14,C14,"") -> 
D15: =IF(AND(BitMEX_LastPrice[BitMEX_LastPrice]<C14,BitMEX_LastPrice[BitMEX_LastPrice]>C16),BitMEX_LastPrice[BitMEX_LastPrice],"") -> 
B16: S3 | C16: =C12-('BTC Prices'!D3-'BTC Prices'!E3) -> 7124 | D16: =IF(BitMEX_LastPrice[BitMEX_LastPrice]=C16,C16,"") -> 
D17: =IF(BitMEX_LastPrice[BitMEX_LastPrice]<C16,BitMEX_LastPrice[BitMEX_LastPrice],"") -> 

Sheet Kelly
B1: Kelly Criterion / Ratio | K1: 0.125
C4: Win Rate Percentage (e.g. 40%) | E4: 0.33
C6: Average Reward to Risk Ratio (e.g. 4.0 = 4:1) | E6: 10
C9: Kelly Ratio | E9: =IFERROR(((((E4*(E6+1))-1)/E6)),"") -> 0.263
E10: =IF(E9<0,"Negative Expectancy, do not trade.","") -> 
E11: =IF($E$9>0, _xlfn.CONCAT((ROUND($E$9/2*100, 0)),"% Half Kelly"),"") -> 13% Half Kelly
E12: =IF($E$9>0, _xlfn.CONCAT((ROUND($E$9/4*100, 0)),"% Quarter Kelly"),"") -> 7% Quarter Kelly
C13: * recommended risk per trade is a quarter Kelly

Sheet Gann
B1: Gann Square of 9 Calculator | L1: 0.125
L2: 0.25
F3: Current Price | L3: 0.375
D4: =E4-1 -> 76 | E4: =FLOOR(G4,1) -> 77 | F4: 6077 | G4: =SQRT(F4) -> 77.95511529 | H4: =IF(INT(G4)=G4,G4+1,CEILING(G4,1)) -> 78 | I4: =H4+1 -> 79 | L4: 0.5
L5: 0.625
B6: =($H$4+L2)*($H$4+L2) -> 6123.0625 | C6: =IF(AND($F$4>=B6,$F$4<E6),VALUE($F$4),"") ->  | E6: =($H$4+L3)*($H$4+L3) -> 6142.640625 | F6: =IF(AND($F$4>=E6,$F$4<H6),VALUE($F$4),"") ->  | H6: =($H$4+L4)*($H$4+L4) -> 6162.25 | J6: Buy at/above | K6: =IF(C10<>"",VALUE(C9),IF(C8<>"",VALUE(C7),IF(D7<>"",VALUE(E7),IF(F7<>"",VALUE(G7),IF(G8<>"",VALUE(G9),IF(G10<>"",VALUE(G11),IF(F11<>"",VALUE(E11),IF(D11<>"",VALUE(C11),IF(B11<>"",VALUE(B9),IF(B8<>"",VALUE(B6),IF(C6<>"",VALUE(E6),IF(F6<>"",VALUE(H6),IF(H7<>"",VALUE(H9),IF(H10<>"",VALUE(H12),IF(G12<>"",VALUE(E12),IF(D12<>"",VALUE(B12),"")))))))))))))))) -> 6084 | L6: 0.75 | M6: Sell at/below | N6: =IF(C10<>"",VALUE(D10),IF(C8<>"",VALUE(C9),IF(D7<>"",VALUE(C7),IF(F7<>"",VALUE(E7),IF(G8<>"",VALUE(G7),IF(G10<>"",VALUE(G9),IF(F11<>"",VALUE(G11),IF(D11<>"",VALUE(E11),IF(B11<>"",VALUE(C11),IF(B8<>"",VALUE(B9),IF(C6<>"",VALUE(B6),IF(F6<>"",VALUE(E6),IF(H7<>"",VALUE(H6),IF(H10<>"",VALUE(H9),IF(G12<>"",VALUE(H12),IF(D12<>"",VALUE(E12),"")))))))))))))))) -> 6064.515625
C7: =($E$4+L2)*($E$4+L2) -> 5967.5625 | D7: =IF(AND($F$4>=C7,$F$4<E7),VALUE($F$4),"") ->  | E7: =($E$4+L3)*($E$4+L3) -> 5986.890625 | F7: =IF(AND($F$4>=E7,$F$4<G7),VALUE($F$4),"") ->  | G7: =($E$4+L4)*($E$4+L4) -> 6006.25 | H7: =IF(AND($F$4>=H6,$F$4<H9),VALUE($F$4),"") ->  | J7: Target 1 | K7: =J14*0.9995 -> 6100.463867 | L7: 0.875 | M7: Target 1 | N7: =J17*1.0005 -> 6048.085031
B8: =IF(AND($F$4>=B9,$F$4<B6),VALUE($F$4),"") ->  | C8: =IF(AND($F$4>=C9,$F$4<C7),VALUE($F$4),"") ->  | D8: =POWER(($D$4+L2),2) -> 5814.0625 | E8: =POWER(($D$4+L3),2) -> 5833.140625 | F8: =POWER(($D$4+L4),2) -> 5852.25 | G8: =IF(AND($F$4>=G7,$F$4<G9),VALUE($F$4),"") ->  | J8: Target 2 | K8: =K14*0.9995 -> 6120.000969 | L8: 1 | M8: Target 2 | N8: =K17*1.0005 -> 6028.653445
B9: =($H$4+L1)*($H$4+L1) -> 6103.515625 | C9: =($E$4+L1)*($E$4+L1) -> 5948.265625 | D9: =POWER(($D$4+L1),2) -> 5795.015625 | E9: =POWER(D4,2) -> 5776 | F9: =POWER(($D$4+L5),2) -> 5871.390625 | G9: =($E$4+L5)*($E$4+L5) -> 6025.640625 | H9: =($H$4+L5)*($H$4+L5) -> 6181.890625 | J9: Target 3 | K9: =L14*0.9995 -> 6139.569305 | M9: Target 3 | N9: =L17*1.0005 -> 6009.253125
C10: =IF(AND($F$4>=D10,$F$4<C9),VALUE($F$4),"") ->  | D10: =POWER(($D$4+L8),2) -> 5929 | E10: =POWER(($D$4+L7),2) -> 5909.765625 | F10: =POWER(($D$4+L6),2) -> 5890.5625 | G10: =IF(AND($F$4>=G9,$F$4<G11),VALUE($F$4),"") ->  | H10: =IF(AND($F$4>=H9,$F$4<H12),VALUE($F$4),"") ->  | J10: Target 4 | K10: =M14*0.9995 -> 6159.168875 | M10: Target 4 | N10: =M17*1.0005 -> 5989.88407
B11: =IF(AND($F$4>=C11,$F$4<B9),VALUE($F$4),"") ->  | C11: =($E$4+L8)*($E$4+L8) -> 6084 | D11: =IF(AND($F$4>=E11,$F$4<C11),VALUE($F$4),"") -> 6077 | E11: =($E$4+L7)*($E$4+L7) -> 6064.515625 | F11: =IF(AND($F$4>=G11,$F$4<E11),VALUE($F$4),"") ->  | G11: =($E$4+L6)*($E$4+L6) -> 6045.0625 | J11: Target 5 | K11: =N14*0.9995 -> 6178.79968 | M11: Target 5 | N11: =N17*1.0005 -> 5970.546281
B12: =($H$4+L8)*($H$4+L8) -> 6241 | D12: =IF(AND($F$4>=E12,$F$4<B12),VALUE($F$4),"") ->  | E12: =($H$4+L7)*($H$4+L7) -> 6221.265625 | G12: =IF(AND($F$4>=H12,$F$4<E12),VALUE($F$4),"") ->  | H12: =($H$4+L6)*($H$4+L6) -> 6201.5625
J13: Resistance 1 | K13: Resistance 2 | L13: Resistance 3 | M13: Resistance 4 | N13: Resistance 5
J14: =IF(C10<>"",VALUE(C7),IF(C8<>"",VALUE(E7),IF(D7<>"",VALUE(G7),IF(F7<>"",VALUE(G9),IF(G8<>"",VALUE(G11),IF(G10<>"",VALUE(E11),IF(F11<>"",VALUE(C11),IF(D11<>"",VALUE(B9),IF(B11<>"",VALUE(B6),IF(B8<>"",VALUE(E6),IF(C6<>"",VALUE(H6),IF(F6<>"",VALUE(H9),IF(H7<>"",VALUE(H12),IF(H10<>"",VALUE(E12),IF(G12<>"",VALUE(B12),IF(D12<>"",VALUE(B12),"")))))))))))))))) -> 6103.515625 | K14: =IF(C10<>"",VALUE(E7),IF(C8<>"",VALUE(G7),IF(D7<>"",VALUE(G9),IF(F7<>"",VALUE(G11),IF(G8<>"",VALUE(E11),IF(G10<>"",VALUE(C11),IF(F11<>"",VALUE(B9),IF(D11<>"",VALUE(B6),IF(B11<>"",VALUE(E6),IF(B8<>"",VALUE(H6),IF(C6<>"",VALUE(H9),IF(F6<>"",VALUE(H12),IF(H7<>"",VALUE(E12),IF(H10<>"",VALUE(B12),IF(G12<>"",VALUE(B12),IF(D12<>"",VALUE(B12),"")))))))))))))))) -> 6123.0625 | L14: =IF(C10<>"",VALUE(G7),IF(C8<>"",VALUE(G9),IF(D7<>"",VALUE(G11),IF(F7<>"",VALUE(E11),IF(G8<>"",VALUE(C11),IF(G10<>"",VALUE(B9),IF(F11<>"",VALUE(B6),IF(D11<>"",VALUE(E6),IF(B11<>"",VALUE(H6),IF(B8<>"",VALUE(H9),IF(C6<>"",VALUE(H12),IF(F6<>"",VALUE(E12),IF(H7<>"",VALUE(B12),IF(H10<>"",VALUE(B12),IF(G12<>"",VALUE(B12),IF(D12<>"",VALUE(B12),"")))))))))))))))) -> 6142.640625 | M14: =IF(C10<>"",VALUE(G9),IF(C8<>"",VALUE(G11),IF(D7<>"",VALUE(E11),IF(F7<>"",VALUE(C11),IF(G8<>"",VALUE(B9),IF(G10<>"",VALUE(B6),IF(F11<>"",VALUE(E6),IF(D11<>"",VALUE(H6),IF(B11<>"",VALUE(H9),IF(B8<>"",VALUE(H12),IF(C6<>"",VALUE(E12),IF(F6<>"",VALUE(B12),IF(H7<>"",VALUE(B12),IF(H10<>"",VALUE(B12),IF(G12<>"",VALUE(B12),IF(D12<>"",VALUE(B12),"")))))))))))))))) -> 6162.25 | N14: =IF(C10<>"",VALUE(G11),IF(C8<>"",VALUE(E11),IF(D7<>"",VALUE(C11),IF(F7<>"",VALUE(B9),IF(G8<>"",VALUE(B6),IF(G10<>"",VALUE(E6),IF(F11<>"",VALUE(H6),IF(D11<>"",VALUE(H9),IF(B11<>"",VALUE(H12),IF(B8<>"",VALUE(E12),IF(C6<>"",VALUE(B12),IF(F6<>"",VALUE(B12),IF(H7<>"",VALUE(B12),IF(H10<>"",VALUE(B12),IF(G12<>"",VALUE(B12),IF(D12<>"",VALUE(B12),"")))))))))))))))) -> 6181.890625
J16: Support 1 | K16: Support 2 | L16: Support 3 | M16: Support 4 | N16: Support 5
J17: =IF(C10<>"",VALUE(E10),IF(C8<>"",VALUE(D10),IF(D7<>"",VALUE(C9),IF(F7<>"",VALUE(C7),IF(G8<>"",VALUE(E7),IF(G10<>"",VALUE(G7),IF(F11<>"",VALUE(G9),IF(D11<>"",VALUE(G11),IF(B11<>"",VALUE(E11),IF(B8<>"",VALUE(C11),IF(C6<>"",VALUE(B9),IF(F6<>"",VALUE(B6),IF(H7<>"",VALUE(E6),IF(H10<>"",VALUE(H6),IF(G12<>"",VALUE(H9),IF(D12<>"",VALUE(H12),"")))))))))))))))) -> 6045.0625 | K17: =IF(C10<>"",VALUE(F10),IF(C8<>"",VALUE(E10),IF(D7<>"",VALUE(D10),IF(F7<>"",VALUE(C9),IF(G8<>"",VALUE(C7),IF(G10<>"",VALUE(E7),IF(F11<>"",VALUE(G7),IF(D11<>"",VALUE(G9),IF(B11<>"",VALUE(G11),IF(B8<>"",VALUE(E11),IF(C6<>"",VALUE(C11),IF(F6<>"",VALUE(B9),IF(H7<>"",VALUE(B6),IF(H10<>"",VALUE(E6),IF(G12<>"",VALUE(H6),IF(D12<>"",VALUE(H9),"")))))))))))))))) -> 6025.640625 | L17: =IF(C10<>"",VALUE(F9),IF(C8<>"",VALUE(F10),IF(D7<>"",VALUE(E10),IF(F7<>"",VALUE(D10),IF(G8<>"",VALUE(C9),IF(G10<>"",VALUE(C7),IF(F11<>"",VALUE(E7),IF(D11<>"",VALUE(G7),IF(B11<>"",VALUE(G9),IF(B8<>"",VALUE(G11),IF(C6<>"",VALUE(E11),IF(F6<>"",VALUE(C11),IF(H7<>"",VALUE(B9),IF(H10<>"",VALUE(B6),IF(G12<>"",VALUE(E6),IF(D12<>"",VALUE(H6),"")))))))))))))))) -> 6006.25 | M17: =IF(C10<>"",VALUE(F8),IF(C8<>"",VALUE(F9),IF(D7<>"",VALUE(F10),IF(F7<>"",VALUE(E10),IF(G8<>"",VALUE(D10),IF(G10<>"",VALUE(C9),IF(F11<>"",VALUE(C7),IF(D11<>"",VALUE(E7),IF(B11<>"",VALUE(G7),IF(B8<>"",VALUE(G9),IF(C6<>"",VALUE(G11),IF(F6<>"",VALUE(E11),IF(H7<>"",VALUE(C11),IF(H10<>"",VALUE(B9),IF(G12<>"",VALUE(B6),IF(D12<>"",VALUE(E6),"")))))))))))))))) -> 5986.890625 | N17: =IF(C10<>"",VALUE(E8),IF(C8<>"",VALUE(F8),IF(D7<>"",VALUE(F9),IF(F7<>"",VALUE(F10),IF(G8<>"",VALUE(E10),IF(G10<>"",VALUE(D10),IF(F11<>"",VALUE(C9),IF(D11<>"",VALUE(C7),IF(B11<>"",VALUE(E7),IF(B8<>"",VALUE(G7),IF(C6<>"",VALUE(G9),IF(F6<>"",VALUE(G11),IF(H7<>"",VALUE(E11),IF(H10<>"",VALUE(C11),IF(G12<>"",VALUE(B9),IF(D12<>"",VALUE(B6),"")))))))))))))))) -> 5967.5625

Sheet BTC Prices (hidden)
A1: Date | B1: Price | C1: Open | D1: High | E1: Low | F1: Vol. | G1: Change % | I1: Return | J1: ATR | M1: Deribit Stuff | P1: BitMEX Stuff
A2: 2019-06-04 | B2: 7589 | C2: 8100.5 | D2: 8100.5 | E2: 7500 | F2: - | G2: -0.0631 | I2: =(B3/BTCDailyOHLC[[#This Row],[Price]])-1 -> 0.06733429964 | J2: =MAX((BTCDailyOHLC[[#This Row],[High]]-BTCDailyOHLC[[#This Row],[Low]]), ABS(BTCDailyOHLC[[#This Row],[High]]-B3), ABS(BTCDailyOHLC[[#This Row],[Low]]-B3)) -> 600.5 | M2: Current BTC Index Price | N2: =deribit_index() -> 7587.13 | P2: BitMEX_LastPrice
A3: 2019-06-03 | B3: 8100 | C3: 8737.5 | D3: 8744.5 | E3: 8030 | F3: - | G3: -0.073 | I3: =(B4/BTCDailyOHLC[[#This Row],[Price]])-1 -> 0.0787654321 | J3: =MAX((BTCDailyOHLC[[#This Row],[High]]-BTCDailyOHLC[[#This Row],[Low]]), ABS(BTCDailyOHLC[[#This Row],[High]]-B4), ABS(BTCDailyOHLC[[#This Row],[Low]]-B4)) -> 714.5 | M3: Current BTC Perpetual Price | N3: =deribit_price("BTC-PERPETUAL") -> 7584.25 | P3: 7586
A4: 2019-06-02 | B4: 8738 | C4: 8555 | D4: 8852.5 | E4: 8549 | F4: - | G4: 0.0213 | I4: =(B5/BTCDailyOHLC[[#This Row],[Price]])-1 -> -0.02088578622 | J4: =MAX((BTCDailyOHLC[[#This Row],[High]]-BTCDailyOHLC[[#This Row],[Low]]), ABS(BTCDailyOHLC[[#This Row],[High]]-B5), ABS(BTCDailyOHLC[[#This Row],[Low]]-B5)) -> 303.5 | M4: Next Weekly Options Expiry | N4: =IF(WEEKDAY(TODAY()+1)>5,7,0)+TODAY()+1+(6-WEEKDAY(TODAY()+1)) -> 2019-06-07
A5: 2019-06-01 | B5: 8555.5 | C5: 8546 | D5: 8636 | E5: 8456 | F5: - | G5: 0.0006 | I5: =(B6/BTCDailyOHLC[[#This Row],[Price]])-1 -> -0.0006428613173 | J5: =MAX((BTCDailyOHLC[[#This Row],[High]]-BTCDailyOHLC[[#This Row],[Low]]), ABS(BTCDailyOHLC[[#This Row],[High]]-B6), ABS(BTCDailyOHLC[[#This Row],[Low]]-B6)) -> 180 | M5: Closest ITM Options Strike | N5: =FLOOR((N3/250),1)*250 -> 7500 | P5: Index Offset
A6: 2019-05-31 | B6: 8550 | C6: 8274 | D6: 8579 | E6: 8119 | F6: - | G6: 0.0333 | I6: =(B7/BTCDailyOHLC[[#This Row],[Price]])-1 -> -0.03222222222 | J6: =MAX((BTCDailyOHLC[[#This Row],[High]]-BTCDailyOHLC[[#This Row],[Low]]), ABS(BTCDailyOHLC[[#This Row],[High]]-B7), ABS(BTCDailyOHLC[[#This Row],[Low]]-B7)) -> 460 | M6: Instrument Name | N6: =DERIBIT_OPTION_NAME(N4, N5, "call") -> BTC-7JUN19-7500-C | P6: =N29-BitMEX_LastPrice[BitMEX_LastPrice] -> 55.28968346
A7: 2019-05-30 | B7: 8274.5 | C7: 8665 | D7: 9099 | E7: 7944.5 | F7: - | G7: -0.0451 | I7: =(B8/BTCDailyOHLC[[#This Row],[Price]])-1 -> 0.04725361049 | J7: =MAX((BTCDailyOHLC[[#This Row],[High]]-BTCDailyOHLC[[#This Row],[Low]]), ABS(BTCDailyOHLC[[#This Row],[High]]-B8), ABS(BTCDailyOHLC[[#This Row],[Low]]-B8)) -> 1154.5 | M7: BTC Implied Volatility for Call | N7: =deribit_iv(N6) -> 0.887
A8: 2019-05-29 | B8: 8665.5 | C8: 8721.5 | D8: 8775 | E8: 8442.5 | F8: - | G8: -0.0064 | I8: =(B9/BTCDailyOHLC[[#This Row],[Price]])-1 -> 0.006404708326 | J8: =MAX((BTCDailyOHLC[[#This Row],[High]]-BTCDailyOHLC[[#This Row],[Low]]), ABS(BTCDailyOHLC[[#This Row],[High]]-B9), ABS(BTCDailyOHLC[[#This Row],[Low]]-B9)) -> 332.5 | M8: Put Instrument Name | N8: =DERIBIT_OPTION_NAME(N4, N5+250, "put") -> BTC-7JUN19-7750-P
A9: 2019-05-28 | B9: 8721 | C9: 8779.5 | D9: 8823.5 | E9: 8563 | F9: - | G9: -0.0067 | I9: =(B10/BTCDailyOHLC[[#This Row],[Price]])-1 -> 0.006765279211 | J9: =MAX((BTCDailyOHLC[[#This Row],[High]]-BTCDailyOHLC[[#This Row],[Low]]), ABS(BTCDailyOHLC[[#This Row],[High]]-B10), ABS(BTCDailyOHLC[[#This Row],[Low]]-B10)) -> 260.5 | M9: BTC Implied Volatility for Put | N9: =deribit_iv(N8) -> 0.8869 | P9: FLOOR((N3/250),1)*250
A10: 2019-05-27 | B10: 8780 | C10: 8749.5 | D10: 8964 | E10: 8660 | F10: - | G10: 0.0034 | I10: =(B11/BTCDailyOHLC[[#This Row],[Price]])-1 -> -0.003416856492 | J10: =MAX((BTCDailyOHLC[[#This Row],[High]]-BTCDailyOHLC[[#This Row],[Low]]), ABS(BTCDailyOHLC[[#This Row],[High]]-B11), ABS(BTCDailyOHLC[[#This Row],[Low]]-B11)) -> 304 | M10: Average BTC Implied Volatility | N10: =AVERAGE(N7,N9) -> 0.88695 | P10: FLOOR(N3/(IF(WEEKDAY(TODAY()+1)>5,250,125)),1)*(IF(WEEKDAY(TODAY()+1)>5,250,125))
A11: 2019-05-26 | B11: 8750 | C11: 8067.5 | D11: 8870 | E11: 7883.5 | F11: - | G11: 0.0847 | I11: =(B12/BTCDailyOHLC[[#This Row],[Price]])-1 -> -0.07805714286 | J11: =MAX((BTCDailyOHLC[[#This Row],[High]]-BTCDailyOHLC[[#This Row],[Low]]), ABS(BTCDailyOHLC[[#This Row],[High]]-B12), ABS(BTCDailyOHLC[[#This Row],[Low]]-B12)) -> 986.5
A12: 2019-05-25 | B12: 8067 | C12: 7997.5 | D12: 8173 | E12: 7938.5 | F12: - | G12: 0.0088 | I12: =(B13/BTCDailyOHLC[[#This Row],[Price]])-1 -> -0.008677327383 | J12: =MAX((BTCDailyOHLC[[#This Row],[High]]-BTCDailyOHLC[[#This Row],[Low]]), ABS(BTCDailyOHLC[[#This Row],[High]]-B13), ABS(BTCDailyOHLC[[#This Row],[Low]]-B13)) -> 234.5
A13: 2019-05-24 | B13: 7997 | C13: 7875.5 | D13: 8194 | E13: 7801.5 | F13: - | G13: 0.0155 | I13: =(B14/BTCDailyOHLC[[#This Row],[Price]])-1 -> -0.0152557209 | J13: =MAX((BTCDailyOHLC[[#This Row],[High]]-BTCDailyOHLC[[#This Row],[Low]]), ABS(BTCDailyOHLC[[#This Row],[High]]-B14), ABS(BTCDailyOHLC[[#This Row],[Low]]-B14)) -> 392.5
A14: 2019-05-23 | B14: 7875 | C14: 7624 | D14: 7982 | E14: 7460 | F14: - | G14: 0.0329 | I14: =(B15/BTCDailyOHLC[[#This Row],[Price]])-1 -> -0.03180952381 | J14: =MAX((BTCDailyOHLC[[#This Row],[High]]-BTCDailyOHLC[[#This Row],[Low]]), ABS(BTCDailyOHLC[[#This Row],[High]]-B15), ABS(BTCDailyOHLC[[#This Row],[Low]]-B15)) -> 522 | M14: Sentiment Stuff
A15: 2019-05-22 | B15: 7624.5 | C15: 7958.5 | D15: 8057 | E15: 7500 | F15: - | G15: -0.042 | I15: =(B16/BTCDailyOHLC[[#This Row],[Price]])-1 -> 0.04387172929 | J15: =MAX((BTCDailyOHLC[[#This Row],[High]]-BTCDailyOHLC[[#This Row],[Low]]), ABS(BTCDailyOHLC[[#This Row],[High]]-B16), ABS(BTCDailyOHLC[[#This Row],[Low]]-B16)) -> 557 | M15: HourlySentimentLowerPricePrediction
A16: 2019-05-21 | B16: 7959 | C16: 8009.5 | D16: 8126.5 | E16: 7808 | F16: - | G16: -0.0063 | I16: =(B17/BTCDailyOHLC[[#This Row],[Price]])-1 -> 0.006345018218 | J16: =MAX((BTCDailyOHLC[[#This Row],[High]]-BTCDailyOHLC[[#This Row],[Low]]), ABS(BTCDailyOHLC[[#This Row],[High]]-B17), ABS(BTCDailyOHLC[[#This Row],[Low]]-B17)) -> 318.5 | M16: 7463.320513
A17: 2019-05-20 | B17: 8009.5 | C17: 8206.5 | D17: 8206.5 | E17: 7580 | F17: - | G17: -0.024 | I17: =(B18/BTCDailyOHLC[[#This Row],[Price]])-1 -> 0.0245957925 | J17: =MAX((BTCDailyOHLC[[#This Row],[High]]-BTCDailyOHLC[[#This Row],[Low]]), ABS(BTCDailyOHLC[[#This Row],[High]]-B18), ABS(BTCDailyOHLC[[#This Row],[Low]]-B18)) -> 626.5 | M17: HourlySentimentMedianPricePrediction (2)
A18: 2019-05-19 | B18: 8206.5 | C18: 7258 | D18: 8320 | E18: 7245.5 | F18: - | G18: 0.1306 | I18: =(B19/BTCDailyOHLC[[#This Row],[Price]])-1 -> -0.1155181868 | J18: =MAX((BTCDailyOHLC[[#This Row],[High]]-BTCDailyOHLC[[#This Row],[Low]]), ABS(BTCDailyOHLC[[#This Row],[High]]-B19), ABS(BTCDailyOHLC[[#This Row],[Low]]-B19)) -> 1074.5 | M18: 7591.397875
A19: 2019-05-18 | B19: 7258.5 | C19: 7352.5 | D19: 7489 | E19: 7202 | F19: - | G19: -0.0127 | I19: =(B20/BTCDailyOHLC[[#This Row],[Price]])-1 -> 0.01288144934 | J19: =MAX((BTCDailyOHLC[[#This Row],[High]]-BTCDailyOHLC[[#This Row],[Low]]), ABS(BTCDailyOHLC[[#This Row],[High]]-B20), ABS(BTCDailyOHLC[[#This Row],[Low]]-B20)) -> 287 | M19: HourlySentimentUpperPricePrediction (2)
A20: 2019-05-17 | B20: 7352 | C20: 7884.5 | D20: 7940 | E20: 6380 | F20: - | G20: -0.0675 | I20: =(B21/BTCDailyOHLC[[#This Row],[Price]])-1 -> 0.07242927095 | J20: =MAX((BTCDailyOHLC[[#This Row],[High]]-BTCDailyOHLC[[#This Row],[Low]]), ABS(BTCDailyOHLC[[#This Row],[High]]-B21), ABS(BTCDailyOHLC[[#This Row],[Low]]-B21)) -> 1560 | M20: 7719.475238
A21: 2019-05-16 | B21: 7884.5 | C21: 8203.5 | D21: 8400 | E21: 7650 | F21: - | G21: -0.0396 | I21: =(B22/BTCDailyOHLC[[#This Row],[Price]])-1 -> 0.04122011542 | J21: =MAX((BTCDailyOHLC[[#This Row],[High]]-BTCDailyOHLC[[#This Row],[Low]]), ABS(BTCDailyOHLC[[#This Row],[High]]-B22), ABS(BTCDailyOHLC[[#This Row],[Low]]-B22)) -> 750 | M21: LastTimestamp
A22: 2019-05-15 | B22: 8209.5 | C22: 7997.5 | D22: 8325 | E22: 7856 | F22: - | G22: 0.0265 | I22: =(B23/BTCDailyOHLC[[#This Row],[Price]])-1 -> -0.02582374079 | J22: =MAX((BTCDailyOHLC[[#This Row],[High]]-BTCDailyOHLC[[#This Row],[Low]]), ABS(BTCDailyOHLC[[#This Row],[High]]-B23), ABS(BTCDailyOHLC[[#This Row],[Low]]-B23)) -> 469 | M22: 1559687940000
A23: 2019-05-14 | B23: 7997.5 | C23: 7827 | D23: 8339 | E23: 7627 | F23: - | G23: 0.0218 | I23: =(B24/BTCDailyOHLC[[#This Row],[Price]])-1 -> -0.02131916224 | J23: =MAX((BTCDailyOHLC[[#This Row],[High]]-BTCDailyOHLC[[#This Row],[Low]]), ABS(BTCDailyOHLC[[#This Row],[High]]-B24), ABS(BTCDailyOHLC[[#This Row],[Low]]-B24)) -> 712 | M23: =LastTimestamp[LastTimestamp]/(1000*60*60*24)+25569 -> 2019-06-04T22:39:00
A24: 2019-05-13 | B24: 7827 | C24: 6972.5 | D24: 8177 | E24: 6863.5 | F24: - | G24: 0.1221 | I24: =(B25/BTCDailyOHLC[[#This Row],[Price]])-1 -> -0.1087900856 | J24: =MAX((BTCDailyOHLC[[#This Row],[High]]-BTCDailyOHLC[[#This Row],[Low]]), ABS(BTCDailyOHLC[[#This Row],[High]]-B25), ABS(BTCDailyOHLC[[#This Row],[Low]]-B25)) -> 1313.5
A25: 2019-05-12 | B25: 6975.5 | C25: 7218 | D25: 7585 | E25: 6781.5 | F25: - | G25: -0.034 | I25: =(B26/BTCDailyOHLC[[#This Row],[Price]])-1 -> 0.03519460971 | J25: =MAX((BTCDailyOHLC[[#This Row],[High]]-BTCDailyOHLC[[#This Row],[Low]]), ABS(BTCDailyOHLC[[#This Row],[High]]-B26), ABS(BTCDailyOHLC[[#This Row],[Low]]-B26)) -> 803.5 | M25: Name | N25: Value
A26: 2019-05-11 | B26: 7221 | C26: 6341.5 | D26: 7459 | E26: 6341.5 | F26: - | G26: 0.1387 | I26: =(B27/BTCDailyOHLC[[#This Row],[Price]])-1 -> -0.121797535 | J26: =MAX((BTCDailyOHLC[[#This Row],[High]]-BTCDailyOHLC[[#This Row],[Low]]), ABS(BTCDailyOHLC[[#This Row],[High]]-B27), ABS(BTCDailyOHLC[[#This Row],[Low]]-B27)) -> 1117.5 | M26: datetime | N26: 2019-06-04 21:39:00
A27: 2019-05-10 | B27: 6341.5 | C27: 6142 | D27: 6424 | E27: 6103.5 | F27: - | G27: 0.0328 | I27: =(B28/BTCDailyOHLC[[#This Row],[Price]])-1 -> -0.03177481668 | J27: =MAX((BTCDailyOHLC[[#This Row],[High]]-BTCDailyOHLC[[#This Row],[Low]]), ABS(BTCDailyOHLC[[#This Row],[High]]-B28), ABS(BTCDailyOHLC[[#This Row],[Low]]-B28)) -> 320.5 | M27: subject | N27: BTC.X
A28: 2019-05-09 | B28: 6140 | C28: 5939 | D28: 6163.5 | E28: 5930 | F28: - | G28: 0.0339 | I28: =(B29/BTCDailyOHLC[[#This Row],[Price]])-1 -> -0.03281758958 | J28: =MAX((BTCDailyOHLC[[#This Row],[High]]-BTCDailyOHLC[[#This Row],[Low]]), ABS(BTCDailyOHLC[[#This Row],[High]]-B29), ABS(BTCDailyOHLC[[#This Row],[Low]]-B29)) -> 233.5 | M28: sent_score | N28: 38.82809022863668
A29: 2019-05-08 | B29: 5938.5 | C29: 5738 | D29: 6000 | E29: 5645 | F29: - | G29: 0.0349 | I29: =(B30/BTCDailyOHLC[[#This Row],[Price]])-1 -> -0.0337627347 | J29: =MAX((BTCDailyOHLC[[#This Row],[High]]-BTCDailyOHLC[[#This Row],[Low]]), ABS(BTCDailyOHLC[[#This Row],[High]]-B30), ABS(BTCDailyOHLC[[#This Row],[Low]]-B30)) -> 355 | M29: lastclose | N29: 7641.289683460
A30: 2019-05-07 | B30: 5738 | C30: 5684.5 | D30: 5975 | E30: 5684.5 | F30: - | G30: 0.0093 | I30: =(B31/BTCDailyOHLC[[#This Row],[Price]])-1 -> -0.009236667829 | J30: =MAX((BTCDailyOHLC[[#This Row],[High]]-BTCDailyOHLC[[#This Row],[Low]]), ABS(BTCDailyOHLC[[#This Row],[High]]-B31), ABS(BTCDailyOHLC[[#This Row],[Low]]-B31)) -> 290.5 | M30: sentiment_rank | N30: 141
A31: 2019-05-06 | B31: 5685 | C31: 5715.5 | D31: 5753 | E31: 5557.5 | F31: - | G31: -0.0053 | I31: =(B33/BTCDailyOHLC[[#This Row],[Price]])-1 -> 0.01477572559 | J31: =MAX((BTCDailyOHLC[[#This Row],[High]]-BTCDailyOHLC[[#This Row],[Low]]), ABS(BTCDailyOHLC[[#This Row],[High]]-B33), ABS(BTCDailyOHLC[[#This Row],[Low]]-B33)) -> 211.5 | M31: svolume | N31: 32466
A32: 2019-05-05 | B32: 5715.5 | C32: 5769 | D32: 5783 | E32: 5608 | F32: - | G32: -0.0093 | I32: =(B33/BTCDailyOHLC[[#This Row],[Price]])-1 -> 0.009360510891 | J32: =MAX((BTCDailyOHLC[[#This Row],[High]]-BTCDailyOHLC[[#This Row],[Low]]), ABS(BTCDailyOHLC[[#This Row],[High]]-B33), ABS(BTCDailyOHLC[[#This Row],[Low]]-B33)) -> 175 | M32: aggregate_data | N32: [Record]
A33: 2019-05-04 | B33: 5769 | C33: 5657.5 | D33: 5850 | E33: 5505 | F33: - | G33: 0.0197
A60: Ben: | B60: 0.22026022
B61: =B60*B3 -> 1784.107782
B62: =_xlfn.DAYS(TODAY(),DATEVALUE("3/9/2018")) -> 452

Sheet Hedge
B1: Hedging Calulator
B4: This is the next planned feature to be
B5: developed in this spreadsheet. Will
B6: probably include a protective put
B7: calculator at first, and evolve to
B8: encompass other hedging strategies.
B12: You can find the most recent version
B13: of this speadsheet at:
B14: http://kickstudios.com/tools

Sheet README
B1: Notes, Credits, and Donations | I1: Version | J1: 0.94
B3: This spreadsheet was created by Kevin Dostalek (CryptoKick) over the course of 2017-2019 to assist with trading in both bull and bear market conditions. Understanding your risk and reward potential is critical for a disciplined aproach to trading consistency.
B5: If you find the work done here helpful and would like to give something back to the author, please consider donating below or simply using some of the author's affiliate links, which does not cost you anything. In fact you usually gain discounts from doing it, but it also gives the author some support for his efforts. There are also courses available (see below).
B7: DONATE BTC | C7: 3Jm5rSbCQVHYSgVB1oqFPkpBv7ypCTyFGi
B8: DONATE XLM | C8: GAZEQP3RT2ESNCSF3CDFM743FDKLBWFU4LW47UWMKZPKP26ZXOUEHBR4
B10: TradingView Affiliate Link | C10: https://tradingview.go2cloud.org/SH3fT
B11: CoinTracking Affiliate Link | C11: https://cointracking.info?ref=K754189
B12: BitMEX Affiliate Link | C12: https://www.bitmex.com/register/mEiVy5
B13: Deribit Affiliate Link | C13: https://www.deribit.com/reg-5157.3831
B14: Binance Affiliate Link | C14: https://www.binance.com/?ref=15261616
B17: UDEMY Courses
B19: I currently have 1 course live on Udemy with plans for additional courses in the coming months. Here are the first two, please visit the link below to get DISCOUNT CODES for major % off retail prices.
B21: Creating Custom Indicators in TradingView with PineScript
B22: Creating TradingView Strategies for Backtesting and Automation
B24: You can find a full list of current and upcoming course (along with discount codes) at:
B25: http://kickstudios.com/courses
B27: Thank you for reading and considering supporting my work! If you donated/used link/bought course and don't care about being annonymous, please drop me a note at tips@kickstudios.com so I can personally thank you!
C29: The most current version of this spreadsheet tool can always be found at | D29: http://kickstudios.com/tools
